Workbook

Sheet 分岗位成绩表
A1: 肥西县2023年公办幼儿园招聘幼师及管理人员合成成绩表（岗位1）
A2: 性别 | B2: 报考岗位代码 | C2: 准考证号码 | D2: 考场号 | E2: 座位号 | F2: 科目 1 | G2: 科目1×30% | H2: 科目2 | I2: 科目2×70% | J2: 笔试总成绩=科目1×30%+科目2×70% | K2: 面试抽签号 | L2: 面试成绩 | M2: 合成成绩=笔试总成绩×40%＋面试成绩×60% | N2: 备注
A3: 女 | B3: 230601 | C3: 2307091617 | D3: 16 | E3: 17 | F3: 78.60 | G3: =F3*0.3 -> 23.58 | H3: 70.20 | I3: =H3*0.7 -> 49.14 | J3: =G3+I3 -> 72.72 | K3: 07 | L3: 84.80 | M3: =J3*0.4+L3*0.6 -> 79.97
A4: 女 | B4: 230601 | C4: 2307093012 | D4: 30 | E4: 12 | F4: 69.20 | G4: 20.76 | H4: 71.30 | I4: 49.91 | J4: 70.67 | K4: 08 | L4: 78.40 | M4: 75.31
A5: 女 | B5: 230601 | C5: 2307092906 | D5: 29 | E5: 06 | F5: 65.80 | G5: 19.74 | H5: 69.70 | I5: 48.79 | J5: 68.53 | K5: 01 | L5: 79.80 | M5: 75.29
A6: 女 | B6: 230601 | C6: 2307090911 | D6: 09 | E6: 11 | F6: 60.20 | G6: 18.06 | H6: 63.40 | I6: 44.38 | J6: 62.44 | K6: 06 | L6: 81.60 | M6: 73.94
A7: 女 | B7: 230601 | C7: 2307090324 | D7: 03 | E7: 24 | F7: 62.60 | G7: 18.78 | H7: 66.20 | I7: 46.34 | J7: 65.12 | K7: 05 | L7: 79.60 | M7: 73.81
A8: 女 | B8: 230601 | C8: 2307091426 | D8: 14 | E8: 26 | F8: 59.40 | G8: 17.82 | H8: 62.30 | I8: 43.61 | J8: 61.43 | K8: 02 | L8: 81.00 | M8: 73.17
A9: 女 | B9: 230601 | C9: 2307093310 | D9: 33 | E9: 10 | F9: 51.40 | G9: 15.42 | H9: 65.00 | I9: 45.50 | J9: 60.92 | K9: 04 | L9: 79.80 | M9: 72.25
A10: 女 | B10: 230601 | C10: 2307090201 | D10: 02 | E10: 01 | F10: 60.40 | G10: 18.12 | H10: 66.40 | I10: 46.48 | J10: 64.60 | K10: 10 | L10: 77.20 | M10: 72.16
A11: 女 | B11: 230601 | C11: 2307093208 | D11: 32 | E11: 08 | F11: 69.40 | G11: 20.82 | H11: 65.40 | I11: 45.78 | J11: 66.60 | K11: 09 | L11: 75.80 | M11: 72.12
A12: 女 | B12: 230601 | C12: 2307091526 | D12: 15 | E12: 26 | F12: 61.40 | G12: 18.42 | H12: 66.10 | I12: 46.27 | J12: 64.69 | K12: 11 | L12: 75.80 | M12: 71.36
A13: 女 | B13: 230601 | C13: 2307091204 | D13: 12 | E13: 04 | F13: 71.80 | G13: 21.54 | H13: 62.80 | I13: 43.96 | J13: 65.50 | K13: 03 | L13: 71.80 | M13: 69.28
A14: 女 | B14: 230601 | C14: 2307090125 | D14: 01 | E14: 25 | F14: 60.90 | G14: 18.27 | H14: 66.10 | I14: 46.27 | J14: 64.54 | K14: 12 | L14: 71.80 | M14: 68.90
A15: 肥西县2023年公办幼儿园招聘幼师及管理人员合成成绩表（岗位2）
A16: 性别 | B16: 报考岗位代码 | C16: 准考证号码 | D16: 考场号 | E16: 座位号 | F16: 科目 1 | G16: 科目1×30% | H16: 科目2 | I16: 科目2×70% | J16: 笔试总成绩=科目1×30%+科目2×70% | K16: 面试抽签号 | L16: 面试成绩 | M16: 合成成绩=笔试总成绩×40%＋面试成绩×60% | N16: 备注
A17: 女 | B17: 230602 | C17: 2307090905 | D17: 09 | E17: 05 | F17: 89.00 | G17: =F17*0.3 -> 26.70 | H17: 79.9 | I17: =H17*0.7 -> 55.93 | J17: =G17+I17 -> 82.63 | K17: 01 | L17: 81.20 | M17: =J17*0.4+L17*0.6 -> 81.77
A18: 女 | B18: 230602 | C18: 2307092222 | D18: 22 | E18: 22 | F18: 80.80 | G18: 24.24 | H18: 80.40 | I18: 56.28 | J18: 80.52 | K18: 04 | L18: 79.20 | M18: 79.73
A19: 女 | B19: 230602 | C19: 2307090221 | D19: 02 | E19: 21 | F19: 74.60 | G19: 22.38 | H19: 72.10 | I19: 50.47 | J19: 72.85 | K19: 16 | L19: 82.80 | M19: 78.82
A20: 女 | B20: 230602 | C20: 2307090513 | D20: 05 | E20: 13 | F20: 73.20 | G20: 21.96 | H20: 65.30 | I20: 45.71 | J20: 67.67 | K20: 12 | L20: 84.20 | M20: 77.59
A21: 女 | B21: 230602 | C21: 2307091330 | D21: 13 | E21: 30 | F21: 74.10 | G21: 22.23 | H21: 64.40 | I21: 45.08 | J21: 67.31 | K21: 21 | L21: 83.80 | M21: 77.20
A22: 女 | B22: 230602 | C22: 2307092806 | D22: 28 | E22: 06 | F22: 77.10 | G22: 23.13 | H22: 66.10 | I22: 46.27 | J22: 69.40 | K22: 11 | L22: 80.40 | M22: 76.00
A23: 女 | B23: 230602 | C23: 2307090529 | D23: 05 | E23: 29 | F23: 64.00 | G23: 19.20 | H23: 67.60 | I23: 47.32 | J23: 66.52 | K23: 09 | L23: 80.60 | M23: 74.97
A24: 女 | B24: 230602 | C24: 2307092327 | D24: 23 | E24: 27 | F24: 73.20 | G24: 21.96 | H24: 64.90 | I24: 45.43 | J24: 67.39 | K24: 19 | L24: 80.00 | M24: 74.96
A25: 女 | B25: 230602 | C25: 2307091117 | D25: 11 | E25: 17 | F25: 61.80 | G25: 18.54 | H25: 69.20 | I25: 48.44 | J25: 66.98 | K25: 22 | L25: 80.00 | M25: 74.79
A26: 女 | B26: 230602 | C26: 2307093020 | D26: 30 | E26: 20 | F26: 80.00 | G26: 24.00 | H26: 66.70 | I26: 46.69 | J26: 70.69 | K26: 24 | L26: 76.60 | M26: 74.24
A27: 女 | B27: 230602 | C27: 2307091527 | D27: 15 | E27: 27 | F27: 80.80 | G27: 24.24 | H27: 62.30 | I27: 43.61 | J27: 67.85 | K27: 23 | L27: 77.80 | M27: 73.82
A28: 女 | B28: 230602 | C28: 2307091707 | D28: 17 | E28: 07 | F28: 78.50 | G28: 23.55 | H28: 65.10 | I28: 45.57 | J28: 69.12 | K28: 13 | L28: 76.60 | M28: 73.61
A29: 女 | B29: 230602 | C29: 2307093018 | D29: 30 | E29: 18 | F29: 75.50 | G29: 22.65 | H29: 67.80 | I29: 47.46 | J29: 70.11 | K29: 17 | L29: 75.40 | M29: 73.28
A30: 女 | B30: 230602 | C30: 2307090515 | D30: 05 | E30: 15 | F30: 70.90 | G30: 21.27 | H30: 68.00 | I30: 47.60 | J30: 68.87 | K30: 18 | L30: 75.60 | M30: 72.91
A31: 女 | B31: 230602 | C31: 2307090102 | D31: 01 | E31: 02 | F31: 79.30 | G31: 23.79 | H31: 66.00 | I31: 46.20 | J31: 69.99 | K31: 05 | L31: 74.20 | M31: 72.52
A32: 女 | B32: 230602 | C32: 2307092605 | D32: 26 | E32: 05 | F32: 67.80 | G32: 20.34 | H32: 66.90 | I32: 46.83 | J32: 67.17 | K32: 15 | L32: 75.60 | M32: 72.23
A33: 女 | B33: 230602 | C33: 2307093006 | D33: 30 | E33: 06 | F33: 75.50 | G33: 22.65 | H33: 63.00 | I33: 44.10 | J33: 66.75 | K33: 25 | L33: 75.70 | M33: 72.12
A34: 女 | B34: 230602 | C34: 2307090219 | D34: 02 | E34: 19 | F34: 75.40 | G34: 22.62 | H34: 73.80 | I34: 51.66 | J34: 74.28 | K34: 08 | L34: 68.60 | M34: 70.87
A35: 女 | B35: 230602 | C35: 2307092508 | D35: 25 | E35: 08 | F35: 71.00 | G35: 21.30 | H35: 64.90 | I35: 45.43 | J35: 66.73 | K35: 10 | L35: 72.00 | M35: 69.89
A36: 女 | B36: 230602 | C36: 2307091102 | D36: 11 | E36: 02 | F36: 74.60 | G36: 22.38 | H36: 61.10 | I36: 42.77 | J36: 65.15 | K36: 14 | L36: 70.00 | M36: 68.06
A37: 女 | B37: 230602 | C37: 2307092813 | D37: 28 | E37: 13 | F37: 72.50 | G37: 21.75 | H37: 69.50 | I37: 48.65 | J37: 70.40 | K37: 缺考 | M37: 28.16
A38: 女 | B38: 230602 | C38: 2307091914 | D38: 19 | E38: 14 | F38: 71.80 | G38: 21.54 | H38: 69.50 | I38: 48.65 | J38: 70.19 | K38: 缺考 | M38: 28.08
A39: 女 | B39: 230602 | C39: 2307090427 | D39: 04 | E39: 27 | F39: 76.20 | G39: 22.86 | H39: 67.60 | I39: 47.32 | J39: 70.18 | K39: 缺考 | M39: 28.07
A40: 女 | B40: 230602 | C40: 2307093024 | D40: 30 | E40: 24 | F40: 63.40 | G40: 19.02 | H40: 66.40 | I40: 46.48 | J40: 65.50 | K40: 缺考 | M40: 26.20
A41: 女 | B41: 230602 | C41: 2307091416 | D41: 14 | E41: 16 | F41: 62.20 | G41: 18.66 | H41: 66.30 | I41: 46.41 | J41: 65.07 | K41: 缺考 | M41: 26.03
A42: 肥西县2023年公办幼儿园招聘幼师及管理人员合成成绩表（岗位3）
A43: 性别 | B43: 报考岗位代码 | C43: 准考证号码 | D43: 考场号 | E43: 座位号 | F43: 科目 1 | G43: 科目1×30% | H43: 科目2 | I43: 科目2×70% | J43: 笔试总成绩=科目1×30%+科目2×70% | K43: 面试抽签号 | L43: 面试成绩 | M43: 合成成绩=笔试总成绩×40%＋面试成绩×60% | N43: 备注
A44: 女 | B44: 230603 | C44: 2307092226 | D44: 22 | E44: 26 | F44: 83.90 | G44: =F44*0.3 -> 25.17 | H44: 76.90 | I44: =H44*0.7 -> 53.83 | J44: =G44+I44 -> 79.00 | K44: 19 | L44: 81.80 | M44: =J44*0.4+L44*0.6 -> 80.68
A45: 女 | B45: 230603 | C45: 2307091724 | D45: 17 | E45: 24 | F45: 79.40 | G45: 23.82 | H45: 75.20 | I45: 52.64 | J45: 76.46 | K45: 20 | L45: 81.60 | M45: 79.54
A46: 女 | B46: 230603 | C46: 2307091409 | D46: 14 | E46: 09 | F46: 79.20 | G46: 23.76 | H46: 70.80 | I46: 49.56 | J46: 73.32 | K46: 24 | L46: 83.40 | M46: 79.37
A47: 女 | B47: 230603 | C47: 2307092026 | D47: 20 | E47: 26 | F47: 85.40 | G47: 25.62 | H47: 67.60 | I47: 47.32 | J47: 72.94 | K47: 02 | L47: 82.20 | M47: 78.50
A48: 女 | B48: 230603 | C48: 2307092214 | D48: 22 | E48: 14 | F48: 80.00 | G48: 24.00 | H48: 69.60 | I48: 48.72 | J48: 72.72 | K48: 14 | L48: 82.00 | M48: 78.29
A49: 女 | B49: 230603 | C49: 2307092302 | D49: 23 | E49: 02 | F49: 80.80 | G49: 24.24 | H49: 75.60 | I49: 52.92 | J49: 77.16 | K49: 08 | L49: 79.00 | M49: 78.26
A50: 女 | B50: 230603 | C50: 2307091410 | D50: 14 | E50: 10 | F50: 76.40 | G50: 22.92 | H50: 74.80 | I50: 52.36 | J50: 75.28 | K50: 04 | L50: 79.80 | M50: 77.99
A51: 女 | B51: 230603 | C51: 2307092915 | D51: 29 | E51: 15 | F51: 80.80 | G51: 24.24 | H51: 71.50 | I51: 50.05 | J51: 74.29 | K51: 15 | L51: 80.00 | M51: 77.72
A52: 女 | B52: 230603 | C52: 2307093309 | D52: 33 | E52: 09 | F52: 82.40 | G52: 24.72 | H52: 69.00 | I52: 48.30 | J52: 73.02 | K52: 13 | L52: 80.40 | M52: 77.45
A53: 女 | B53: 230603 | C53: 2307091815 | D53: 18 | E53: 15 | F53: 75.60 | G53: 22.68 | H53: 66.30 | I53: 46.41 | J53: 69.09 | K53: 11 | L53: 82.00 | M53: 76.84
A54: 女 | B54: 230603 | C54: 2307091929 | D54: 19 | E54: 29 | F54: 76.30 | G54: 22.89 | H54: 70.70 | I54: 49.49 | J54: 72.38 | K54: 09 | L54: 79.00 | M54: 76.35
A55: 女 | B55: 230603 | C55: 2307092808 | D55: 28 | E55: 08 | F55: 79.20 | G55: 23.76 | H55: 68.80 | I55: 48.16 | J55: 71.92 | K55: 18 | L55: 78.20 | M55: 75.69
A56: 女 | B56: 230603 | C56: 2307092609 | D56: 26 | E56: 09 | F56: 74.50 | G56: 22.35 | H56: 69.80 | I56: 48.86 | J56: 71.21 | K56: 01 | L56: 78.60 | M56: 75.64
A57: 女 | B57: 230603 | C57: 2307090505 | D57: 05 | E57: 05 | F57: 76.40 | G57: 22.92 | H57: 67.50 | I57: 47.25 | J57: 70.17 | K57: 25 | L57: 78.60 | M57: 75.23
A58: 女 | B58: 230603 | C58: 2307092023 | D58: 20 | E58: 23 | F58: 82.40 | G58: 24.72 | H58: 69.70 | I58: 48.79 | J58: 73.51 | K58: 12 | L58: 75.00 | M58: 74.40
A59: 女 | B59: 230603 | C59: 2307091223 | D59: 12 | E59: 23 | F59: 77.70 | G59: 23.31 | H59: 69.90 | I59: 48.93 | J59: 72.24 | K59: 06 | L59: 75.80 | M59: 74.38
A60: 女 | B60: 230603 | C60: 2307092325 | D60: 23 | E60: 25 | F60: 86.10 | G60: 25.83 | H60: 68.50 | I60: 47.95 | J60: 73.78 | K60: 10 | L60: 74.60 | M60: 74.27
A61: 女 | B61: 230603 | C61: 2307092118 | D61: 21 | E61: 18 | F61: 74.10 | G61: 22.23 | H61: 71.30 | I61: 49.91 | J61: 72.14 | K61: 21 | L61: 75.20 | M61: 73.98
A62: 女 | B62: 230603 | C62: 2307090713 | D62: 07 | E62: 13 | F62: 76.70 | G62: 23.01 | H62: 71.00 | I62: 49.70 | J62: 72.71 | K62: 23 | L62: 74.80 | M62: 73.96
A63: 女 | B63: 230603 | C63: 2307090228 | D63: 02 | E63: 28 | F63: 72.20 | G63: 21.66 | H63: 71.00 | I63: 49.70 | J63: 71.36 | K63: 22 | L63: 75.60 | M63: 73.90
A64: 女 | B64: 230603 | C64: 2307090409 | D64: 04 | E64: 09 | F64: 75.50 | G64: 22.65 | H64: 77.00 | I64: 53.90 | J64: 76.55 | K64: 03 | L64: 71.20 | M64: 73.34
A65: 女 | B65: 230603 | C65: 2307092902 | D65: 29 | E65: 02 | F65: 69.30 | G65: 20.79 | H65: 70.70 | I65: 49.49 | J65: 70.28 | K65: 05 | L65: 71.80 | M65: 71.19
A66: 女 | B66: 230603 | C66: 2307090215 | D66: 02 | E66: 15 | F66: 75.40 | G66: 22.62 | H66: 67.60 | I66: 47.32 | J66: 69.94 | K66: 27 | L66: 71.60 | M66: 70.94
A67: 女 | B67: 230603 | C67: 2307090803 | D67: 08 | E67: 03 | F67: 80.70 | G67: 24.21 | H67: 64.70 | I67: 45.29 | J67: 69.50 | K67: 07 | L67: 70.00 | M67: 69.80
A68: 女 | B68: 230603 | C68: 2307092909 | D68: 29 | E68: 09 | F68: 86.80 | G68: 26.04 | H68: 61.50 | I68: 43.05 | J68: 69.09 | K68: 16 | L68: 70.00 | M68: 69.64
A69: 女 | B69: 230603 | C69: 2307090919 | D69: 09 | E69: 19 | F69: 70.70 | G69: 21.21 | H69: 69.20 | I69: 48.44 | J69: 69.65 | K69: 17 | L69: 69.20 | M69: 69.38
A70: 女 | B70: 230603 | C70: 2307091515 | D70: 15 | E70: 15 | F70: 81.60 | G70: 24.48 | H70: 68.70 | I70: 48.09 | J70: 72.57 | K70: 缺考 | M70: 29.03
A71: 肥西县2023年公办幼儿园招聘幼师及管理人员合成成绩表（岗位4）
A72: 性别 | B72: 报考岗位代码 | C72: 准考证号码 | D72: 考场号 | E72: 座位号 | F72: 科目 1 | G72: 科目1×30% | H72: 科目2 | I72: 科目2×70% | J72: 笔试总成绩=科目1×30%+科目2×70% | K72: 面试抽签号 | L72: 面试成绩 | M72: 合成成绩=笔试总成绩×40%＋面试成绩×60% | N72: 备注
A73: 女 | B73: 230604 | C73: 2307092020 | D73: 20 | E73: 20 | F73: 83.70 | G73: =F73*0.3 -> 25.11 | H73: 75.80 | I73: =H73*0.7 -> 53.06 | J73: =G73+I73 -> 78.17 | K73: 17 | L73: 81.00 | M73: =J73*0.4+L73*0.6 -> 79.87
A74: 女 | B74: 230604 | C74: 2307091621 | D74: 16 | E74: 21 | F74: 79.40 | G74: 23.82 | H74: 78.70 | I74: 55.09 | J74: 78.91 | K74: 22 | L74: 80.40 | M74: 79.80
A75: 女 | B75: 230604 | C75: 2307092311 | D75: 23 | E75: 11 | F75: 81.50 | G75: 24.45 | H75: 74.90 | I75: 52.43 | J75: 76.88 | K75: 05 | L75: 81.40 | M75: 79.59
A76: 女 | B76: 230604 | C76: 2307092117 | D76: 21 | E76: 17 | F76: 82.20 | G76: 24.66 | H76: 78.00 | I76: 54.60 | J76: 79.26 | K76: 14 | L76: 78.60 | M76: 78.86
A77: 女 | B77: 230604 | C77: 2307092309 | D77: 23 | E77: 09 | F77: 77.00 | G77: 23.10 | H77: 74.00 | I77: 51.80 | J77: 74.90 | K77: 09 | L77: 80.60 | M77: 78.32
A78: 女 | B78: 230604 | C78: 2307092301 | D78: 23 | E78: 01 | F78: 74.00 | G78: 22.20 | H78: 71.50 | I78: 50.05 | J78: 72.25 | K78: 16 | L78: 82.20 | M78: 78.22
A79: 女 | B79: 230604 | C79: 2307091701 | D79: 17 | E79: 01 | F79: 80.00 | G79: 24.00 | H79: 74.00 | I79: 51.80 | J79: 75.80 | K79: 11 | L79: 79.60 | M79: 78.08
A80: 女 | B80: 230604 | C80: 2307092519 | D80: 25 | E80: 19 | F80: 74.60 | G80: 22.38 | H80: 78.50 | I80: 54.95 | J80: 77.33 | K80: 26 | L80: 78.20 | M80: 77.85
A81: 女 | B81: 230604 | C81: 2307090202 | D81: 02 | E81: 02 | F81: 90.00 | G81: 27.00 | H81: 72.10 | I81: 50.47 | J81: 77.47 | K81: 12 | L81: 77.60 | M81: 77.55
A82: 女 | B82: 230604 | C82: 2307092116 | D82: 21 | E82: 16 | F82: 78.50 | G82: 23.55 | H82: 73.60 | I82: 51.52 | J82: 75.07 | K82: 03 | L82: 79.00 | M82: 77.43
A83: 女 | B83: 230604 | C83: 2307091629 | D83: 16 | E83: 29 | F83: 76.80 | G83: 23.04 | H83: 71.60 | I83: 50.12 | J83: 73.16 | K83: 20 | L83: 80.20 | M83: 77.38
A84: 女 | B84: 230604 | C84: 2307093303 | D84: 33 | E84: 03 | F84: 80.80 | G84: 24.24 | H84: 67.50 | I84: 47.25 | J84: 71.49 | K84: 02 | L84: 81.20 | M84: 77.32
A85: 女 | B85: 230604 | C85: 2307091022 | D85: 10 | E85: 22 | F85: 81.70 | G85: 24.51 | H85: 67.80 | I85: 47.46 | J85: 71.97 | K85: 07 | L85: 80.80 | M85: 77.27
A86: 女 | B86: 230604 | C86: 2307092111 | D86: 21 | E86: 11 | F86: 82.40 | G86: 24.72 | H86: 70.50 | I86: 49.35 | J86: 74.07 | K86: 19 | L86: 79.40 | M86: 77.27
A87: 女 | B87: 230604 | C87: 2307092914 | D87: 29 | E87: 14 | F87: 85.60 | G87: 25.68 | H87: 72.20 | I87: 50.54 | J87: 76.22 | K87: 25 | L87: 76.80 | M87: 76.57
A88: 女 | B88: 230604 | C88: 2307092123 | D88: 21 | E88: 23 | F88: 86.00 | G88: 25.80 | H88: 67.00 | I88: 46.90 | J88: 72.70 | K88: 23 | L88: 79.00 | M88: 76.48
A89: 女 | B89: 230604 | C89: 2307092308 | D89: 23 | E89: 08 | F89: 76.20 | G89: 22.86 | H89: 78.80 | I89: 55.16 | J89: 78.02 | K89: 13 | L89: 75.20 | M89: 76.33
A90: 女 | B90: 230604 | C90: 2307091730 | D90: 17 | E90: 30 | F90: 70.90 | G90: 21.27 | H90: 70.50 | I90: 49.35 | J90: 70.62 | K90: 21 | L90: 79.80 | M90: 76.13
A91: 女 | B91: 230604 | C91: 2307090830 | D91: 08 | E91: 30 | F91: 77.90 | G91: 23.37 | H91: 71.60 | I91: 50.12 | J91: 73.49 | K91: 18 | L91: 77.60 | M91: 75.96
A92: 女 | B92: 230604 | C92: 2307091920 | D92: 19 | E92: 20 | F92: 73.10 | G92: 21.93 | H92: 71.90 | I92: 50.33 | J92: 72.26 | K92: 15 | L92: 78.40 | M92: 75.94
A93: 女 | B93: 230604 | C93: 2307092105 | D93: 21 | E93: 05 | F93: 77.60 | G93: 23.28 | H93: 70.90 | I93: 49.63 | J93: 72.91 | K93: 24 | L93: 75.00 | M93: 74.16
A94: 女 | B94: 230604 | C94: 2307092218 | D94: 22 | E94: 18 | F94: 74.60 | G94: 22.38 | H94: 69.50 | I94: 48.65 | J94: 71.03 | K94: 01 | L94: 75.00 | M94: 73.41
A95: 女 | B95: 230604 | C95: 2307092901 | D95: 29 | E95: 01 | F95: 75.30 | G95: 22.59 | H95: 69.40 | I95: 48.58 | J95: 71.17 | K95: 08 | L95: 71.00 | M95: 71.07
A96: 女 | B96: 230604 | C96: 2307091418 | D96: 14 | E96: 18 | F96: 81.60 | G96: 24.48 | H96: 79.70 | I96: 55.79 | J96: 80.27 | K96: 缺考 | M96: 32.11
A97: 女 | B97: 230604 | C97: 2307090508 | D97: 05 | E97: 08 | F97: 84.00 | G97: 25.20 | H97: 72.70 | I97: 50.89 | J97: 76.09 | K97: 缺考 | M97: 30.44
A98: 女 | B98: 230604 | C98: 2307092705 | D98: 27 | E98: 05 | F98: 83.90 | G98: 25.17 | H98: 71.10 | I98: 49.77 | J98: 74.94 | K98: 缺考 | M98: 29.98
A99: 肥西县2023年公办幼儿园招聘幼师及管理人员合成成绩表（岗位5）
A100: 性别 | B100: 报考岗位代码 | C100: 准考证号码 | D100: 考场号 | E100: 座位号 | F100: 科目 1 | G100: 科目1×30% | H100: 科目2 | I100: 科目2×70% | J100: 笔试总成绩=科目1×30%+科目2×70% | K100: 面试抽签号 | L100: 面试成绩 | M100: 合成成绩=笔试总成绩×40%＋面试成绩×60% | N100: 备注
A101: 女 | B101: 230605 | C101: 2307091118 | D101: 11 | E101: 18 | F101: 83.80 | G101: =F101*0.3 -> 25.14 | H101: 81.90 | I101: =H101*0.7 -> 57.33 | J101: =G101+I101 -> 82.47 | K101: 24 | L101: 79.40 | M101: =J101*0.4+L101*0.6 -> 80.63
A102: 女 | B102: 230605 | C102: 2307091903 | D102: 19 | E102: 03 | F102: 83.20 | G102: 24.96 | H102: 62.70 | I102: 43.89 | J102: 68.85 | K102: 13 | L102: 85.80 | M102: 79.02
A103: 女 | B103: 230605 | C103: 2307090103 | D103: 01 | E103: 03 | F103: 83.60 | G103: 25.08 | H103: 67.40 | I103: 47.18 | J103: 72.26 | K103: 20 | L103: 83.00 | M103: 78.70
A104: 女 | B104: 230605 | C104: 2307092515 | D104: 25 | E104: 15 | F104: 79.40 | G104: 23.82 | H104: 79.00 | I104: 55.30 | J104: 79.12 | K104: 18 | L104: 77.80 | M104: 78.33
A105: 女 | B105: 230605 | C105: 2307090504 | D105: 05 | E105: 04 | F105: 78.50 | G105: 23.55 | H105: 70.00 | I105: 49.00 | J105: 72.55 | K105: 23 | L105: 81.00 | M105: 77.62
A106: 女 | B106: 230605 | C106: 2307090127 | D106: 01 | E106: 27 | F106: 63.70 | G106: 19.11 | H106: 71.30 | I106: 49.91 | J106: 69.02 | K106: 22 | L106: 83.00 | M106: 77.41
A107: 女 | B107: 230605 | C107: 2307091817 | D107: 18 | E107: 17 | F107: 85.30 | G107: 25.59 | H107: 73.30 | I107: 51.31 | J107: 76.90 | K107: 11 | L107: 77.60 | M107: 77.32
A108: 女 | B108: 230605 | C108: 2307091429 | D108: 14 | E108: 29 | F108: 80.60 | G108: 24.18 | H108: 78.40 | I108: 54.88 | J108: 79.06 | K108: 27 | L108: 76.00 | M108: 77.22
A109: 女 | B109: 230605 | C109: 2307092506 | D109: 25 | E109: 06 | F109: 72.30 | G109: 21.69 | H109: 69.10 | I109: 48.37 | J109: 70.06 | K109: 02 | L109: 81.40 | M109: 76.86
A110: 女 | B110: 230605 | C110: 2307092221 | D110: 22 | E110: 21 | F110: 76.90 | G110: 23.07 | H110: 77.80 | I110: 54.46 | J110: 77.53 | K110: 15 | L110: 76.20 | M110: 76.73
A111: 女 | B111: 230605 | C111: 2307092420 | D111: 24 | E111: 20 | F111: 73.40 | G111: 22.02 | H111: 71.00 | I111: 49.70 | J111: 71.72 | K111: 21 | L111: 78.00 | M111: 75.49
A112: 女 | B112: 230605 | C112: 2307093127 | D112: 31 | E112: 27 | F112: 67.70 | G112: 20.31 | H112: 69.20 | I112: 48.44 | J112: 68.75 | K112: 10 | L112: 79.40 | M112: 75.14
A113: 女 | B113: 230605 | C113: 2307091105 | D113: 11 | E113: 05 | F113: 80.00 | G113: 24.00 | H113: 66.80 | I113: 46.76 | J113: 70.76 | K113: 16 | L113: 77.80 | M113: 74.98
A114: 女 | B114: 230605 | C114: 2307092315 | D114: 23 | E114: 15 | F114: 76.20 | G114: 22.86 | H114: 73.10 | I114: 51.17 | J114: 74.03 | K114: 06 | L114: 75.60 | M114: 74.97
A115: 女 | B115: 230605 | C115: 2307091207 | D115: 12 | E115: 07 | F115: 67.20 | G115: 20.16 | H115: 67.80 | I115: 47.46 | J115: 67.62 | K115: 04 | L115: 78.80 | M115: 74.33
A116: 女 | B116: 230605 | C116: 2307091214 | D116: 12 | E116: 14 | F116: 74.00 | G116: 22.20 | H116: 78.10 | I116: 54.67 | J116: 76.87 | K116: 17 | L116: 72.60 | M116: 74.31
A117: 女 | B117: 230605 | C117: 2307091505 | D117: 15 | E117: 05 | F117: 74.60 | G117: 22.38 | H117: 64.60 | I117: 45.22 | J117: 67.60 | K117: 01 | L117: 78.00 | M117: 73.84
A118: 女 | B118: 230605 | C118: 2307091012 | D118: 10 | E118: 12 | F118: 80.20 | G118: 24.06 | H118: 64.40 | I118: 45.08 | J118: 69.14 | K118: 12 | L118: 75.40 | M118: 72.90
A119: 女 | B119: 230605 | C119: 2307092019 | D119: 20 | E119: 19 | F119: 79.40 | G119: 23.82 | H119: 66.90 | I119: 46.83 | J119: 70.65 | K119: 26 | L119: 74.20 | M119: 72.78
A120: 女 | B120: 230605 | C120: 2307090826 | D120: 08 | E120: 26 | F120: 77.80 | G120: 23.34 | H120: 63.40 | I120: 44.38 | J120: 67.72 | K120: 08 | L120: 75.00 | M120: 72.09
A121: 女 | B121: 230605 | C121: 2307093230 | D121: 32 | E121: 30 | F121: 80.90 | G121: 24.27 | H121: 66.00 | I121: 46.20 | J121: 70.47 | K121: 25 | L121: 72.80 | M121: 71.87
A122: 女 | B122: 230605 | C122: 2307091010 | D122: 10 | E122: 10 | F122: 74.70 | G122: 22.41 | H122: 67.00 | I122: 46.90 | J122: 69.31 | K122: 05 | L122: 71.80 | M122: 70.80
A123: 女 | B123: 230605 | C123: 2307090130 | D123: 01 | E123: 30 | F123: 63.90 | G123: 19.17 | H123: 74.60 | I123: 52.22 | J123: 71.39 | K123: 19 | L123: 68.20 | M123: 69.48
A124: 女 | B124: 230605 | C124: 2307092811 | D124: 28 | E124: 11 | F124: 72.20 | G124: 21.66 | H124: 67.90 | I124: 47.53 | J124: 69.19 | K124: 09 | L124: 66.60 | M124: 67.64
A125: 女 | B125: 230605 | C125: 2307090627 | D125: 06 | E125: 27 | F125: 77.10 | G125: 23.13 | H125: 72.30 | I125: 50.61 | J125: 73.74 | K125: 缺考 | M125: 29.50
A126: 女 | B126: 230605 | C126: 2307092027 | D126: 20 | E126: 27 | F126: 76.80 | G126: 23.04 | H126: 69.90 | I126: 48.93 | J126: 71.97 | K126: 缺考 | M126: 28.79
A127: 男 | B127: 230605 | C127: 2307092229 | D127: 22 | E127: 29 | F127: 74.60 | G127: 22.38 | H127: 64.90 | I127: 45.43 | J127: 67.81 | K127: 缺考 | M127: 27.12
A128: 肥西县2023年公办幼儿园招聘幼师及管理人员合成成绩表（岗位6）
A129: 性别 | B129: 报考岗位代码 | C129: 准考证号码 | D129: 考场号 | E129: 座位号 | F129: 科目 1 | G129: 科目1×30% | H129: 科目2 | I129: 科目2×70% | J129: 笔试总成绩=科目1×30%+科目2×70% | K129: 面试抽签号 | L129: 面试成绩 | M129: 合成成绩=笔试总成绩×40%＋面试成绩×60% | N129: 备注
A130: 女 | B130: 230606 | C130: 2307091020 | D130: 10 | E130: 20 | F130: 82.10 | G130: =F130*0.3 -> 24.63 | H130: 68.00 | I130: =H130*0.7 -> 47.60 | J130: =G130+I130 -> 72.23 | K130: 02 | L130: 85.80 | M130: =J130*0.4+L130*0.6 -> 80.37
A131: 女 | B131: 230606 | C131: 2307093203 | D131: 32 | E131: 03 | F131: 87.80 | G131: 26.34 | H131: 70.10 | I131: 49.07 | J131: 75.41 | K131: 09 | L131: 83.00 | M131: 79.96
A132: 女 | B132: 230606 | C132: 2307092007 | D132: 20 | E132: 07 | F132: 78.50 | G132: 23.55 | H132: 73.00 | I132: 51.10 | J132: 74.65 | K132: 14 | L132: 81.60 | M132: 78.82
A133: 女 | B133: 230606 | C133: 2307091503 | D133: 15 | E133: 03 | F133: 74.10 | G133: 22.23 | H133: 68.30 | I133: 47.81 | J133: 70.04 | K133: 18 | L133: 84.50 | M133: 78.72
A134: 女 | B134: 230606 | C134: 2307091905 | D134: 19 | E134: 05 | F134: 78.50 | G134: 23.55 | H134: 69.70 | I134: 48.79 | J134: 72.34 | K134: 08 | L134: 82.60 | M134: 78.50
A135: 女 | B135: 230606 | C135: 2307091906 | D135: 19 | E135: 06 | F135: 77.80 | G135: 23.34 | H135: 63.80 | I135: 44.66 | J135: 68.00 | K135: 15 | L135: 84.60 | M135: 77.96
A136: 女 | B136: 230606 | C136: 2307090412 | D136: 04 | E136: 12 | F136: 80.00 | G136: 24.00 | H136: 73.60 | I136: 51.52 | J136: 75.52 | K136: 21 | L136: 79.50 | M136: 77.91
A137: 男 | B137: 230606 | C137: 2307090619 | D137: 06 | E137: 19 | F137: 73.20 | G137: 21.96 | H137: 72.20 | I137: 50.54 | J137: 72.50 | K137: 24 | L137: 81.40 | M137: 77.84
A138: 女 | B138: 230606 | C138: 2307093215 | D138: 32 | E138: 15 | F138: 80.70 | G138: 24.21 | H138: 74.30 | I138: 52.01 | J138: 76.22 | K138: 22 | L138: 78.80 | M138: 77.77
A139: 女 | B139: 230606 | C139: 2307091825 | D139: 18 | E139: 25 | F139: 76.20 | G139: 22.86 | H139: 66.90 | I139: 46.83 | J139: 69.69 | K139: 11 | L139: 83.00 | M139: 77.68
A140: 女 | B140: 230606 | C140: 2307091925 | D140: 19 | E140: 25 | F140: 74.80 | G140: 22.44 | H140: 74.20 | I140: 51.94 | J140: 74.38 | K140: 23 | L140: 79.40 | M140: 77.39
A141: 女 | B141: 230606 | C141: 2307092110 | D141: 21 | E141: 10 | F141: 82.30 | G141: 24.69 | H141: 74.40 | I141: 52.08 | J141: 76.77 | K141: 16 | L141: 77.60 | M141: 77.27
A142: 男 | B142: 230606 | C142: 2307090703 | D142: 07 | E142: 03 | F142: 77.70 | G142: 23.31 | H142: 65.20 | I142: 45.64 | J142: 68.95 | K142: 04 | L142: 82.80 | M142: 77.26
A143: 女 | B143: 230606 | C143: 2307090302 | D143: 03 | E143: 02 | F143: 83.90 | G143: 25.17 | H143: 68.60 | I143: 48.02 | J143: 73.19 | K143: 03 | L143: 78.20 | M143: 76.20
A144: 女 | B144: 230606 | C144: 2307091922 | D144: 19 | E144: 22 | F144: 81.60 | G144: 24.48 | H144: 69.10 | I144: 48.37 | J144: 72.85 | K144: 13 | L144: 78.40 | M144: 76.18
A145: 女 | B145: 230606 | C145: 2307091002 | D145: 10 | E145: 02 | F145: 64.70 | G145: 19.41 | H145: 67.60 | I145: 47.32 | J145: 66.73 | K145: 20 | L145: 81.60 | M145: 75.65
A146: 女 | B146: 230606 | C146: 2307092220 | D146: 22 | E146: 20 | F146: 77.70 | G146: 23.31 | H146: 68.20 | I146: 47.74 | J146: 71.05 | K146: 25 | L146: 77.20 | M146: 74.74
A147: 女 | B147: 230606 | C147: 2307090105 | D147: 01 | E147: 05 | F147: 70.20 | G147: 21.06 | H147: 68.30 | I147: 47.81 | J147: 68.87 | K147: 07 | L147: 78.60 | M147: 74.71
A148: 女 | B148: 230606 | C148: 2307090614 | D148: 06 | E148: 14 | F148: 69.20 | G148: 20.76 | H148: 64.80 | I148: 45.36 | J148: 66.12 | K148: 01 | L148: 80.40 | M148: 74.69
A149: 女 | B149: 230606 | C149: 2307090114 | D149: 01 | E149: 14 | F149: 74.00 | G149: 22.20 | H149: 66.50 | I149: 46.55 | J149: 68.75 | K149: 05 | L149: 78.60 | M149: 74.66
A150: 女 | B150: 230606 | C150: 2307093207 | D150: 32 | E150: 07 | F150: 68.00 | G150: 20.40 | H150: 69.20 | I150: 48.44 | J150: 68.84 | K150: 06 | L150: 78.20 | M150: 74.46
A151: 女 | B151: 230606 | C151: 2307091826 | D151: 18 | E151: 26 | F151: 73.10 | G151: 21.93 | H151: 65.00 | I151: 45.50 | J151: 67.43 | K151: 12 | L151: 77.00 | M151: 73.17
A152: 女 | B152: 230606 | C152: 2307092421 | D152: 24 | E152: 21 | F152: 74.80 | G152: 22.44 | H152: 68.40 | I152: 47.88 | J152: 70.32 | K152: 10 | L152: 70.40 | M152: 70.37
A153: 女 | B153: 230606 | C153: 2307093019 | D153: 30 | E153: 19 | F153: 81.00 | G153: 24.30 | H153: 70.70 | I153: 49.49 | J153: 73.79 | K153: 缺考 | M153: 29.52
A154: 女 | B154: 230606 | C154: 2307091820 | D154: 18 | E154: 20 | F154: 74.70 | G154: 22.41 | H154: 64.00 | I154: 44.80 | J154: 67.21 | K154: 缺考 | M154: 26.88
A155: 肥西县2023年公办幼儿园招聘幼师及管理人员合成成绩表（岗位7）
A156: 性别 | B156: 报考岗位代码 | C156: 准考证号码 | D156: 考场号 | E156: 座位号 | F156: 科目 1 | G156: 科目1×30% | H156: 科目2 | I156: 科目2×70% | J156: 笔试总成绩=科目1×30%+科目2×70% | K156: 面试抽签号 | L156: 面试成绩 | M156: 合成成绩=笔试总成绩×40%＋面试成绩×60% | N156: 备注
A157: 女 | B157: 239007 | C157: 2307090209 | D157: 02 | E157: 09 | F157: 88.40 | G157: =F157*0.3 -> 26.52 | H157: 87.4 | I157: =H157*0.7 -> 61.18 | J157: =G157+I157 -> 87.70 | K157: 03 | L157: 77.20 | M157: =J157*0.4+L157*0.6 -> 81.40
A158: 女 | B158: 239007 | C158: 2307092616 | D158: 26 | E158: 16 | F158: 79.30 | G158: 23.79 | H158: 72.40 | I158: 50.68 | J158: 74.47 | K158: 08 | L158: 83.80 | M158: 80.07
A159: 女 | B159: 239007 | C159: 2307092824 | D159: 28 | E159: 24 | F159: 88.50 | G159: 26.55 | H159: 68.90 | I159: 48.23 | J159: 74.78 | K159: 24 | L159: 83.00 | M159: 79.71
A160: 女 | B160: 239007 | C160: 2307093004 | D160: 30 | E160: 04 | F160: 77.00 | G160: 23.10 | H160: 72.90 | I160: 51.03 | J160: 74.13 | K160: 02 | L160: 83.20 | M160: 79.57
A161: 女 | B161: 239007 | C161: 2307092804 | D161: 28 | E161: 04 | F161: 70.90 | G161: 21.27 | H161: 67.20 | I161: 47.04 | J161: 68.31 | K161: 07 | L161: 86.00 | M161: 78.92
A162: 女 | B162: 239007 | C162: 2307092028 | D162: 20 | E162: 28 | F162: 83.10 | G162: 24.93 | H162: 73.80 | I162: 51.66 | J162: 76.59 | K162: 23 | L162: 79.80 | M162: 78.52
A163: 女 | B163: 239007 | C163: 2307091813 | D163: 18 | E163: 13 | F163: 75.40 | G163: 22.62 | H163: 68.70 | I163: 48.09 | J163: 70.71 | K163: 16 | L163: 82.40 | M163: 77.72
A164: 女 | B164: 239007 | C164: 2307092417 | D164: 24 | E164: 17 | F164: 77.70 | G164: 23.31 | H164: 71.40 | I164: 49.98 | J164: 73.29 | K164: 05 | L164: 79.00 | M164: 76.72
A165: 女 | B165: 239007 | C165: 2307090206 | D165: 02 | E165: 06 | F165: 75.40 | G165: 22.62 | H165: 75.20 | I165: 52.64 | J165: 75.26 | K165: 17 | L165: 75.80 | M165: 75.58
A166: 女 | B166: 239007 | C166: 2307092521 | D166: 25 | E166: 21 | F166: 75.40 | G166: 22.62 | H166: 77.20 | I166: 54.04 | J166: 76.66 | K166: 01 | L166: 71.20 | M166: 73.38
A167: 女 | B167: 239007 | C167: 2307090310 | D167: 03 | E167: 10 | F167: 77.60 | G167: 23.28 | H167: 67.60 | I167: 47.32 | J167: 70.60 | K167: 09 | L167: 74.00 | M167: 72.64
A168: 女 | B168: 239007 | C168: 2307093107 | D168: 31 | E168: 07 | F168: 79.10 | G168: 23.73 | H168: 68.80 | I168: 48.16 | J168: 71.89 | K168: 18 | L168: 73.00 | M168: 72.56
A169: 女 | B169: 239007 | C169: 2307092215 | D169: 22 | E169: 15 | F169: 82.40 | G169: 24.72 | H169: 72.90 | I169: 51.03 | J169: 75.75 | K169: 10 | L169: 70.40 | M169: 72.54
A170: 女 | B170: 239007 | C170: 2307091216 | D170: 12 | E170: 16 | F170: 69.40 | G170: 20.82 | H170: 72.20 | I170: 50.54 | J170: 71.36 | K170: 25 | L170: 73.00 | M170: 72.34
A171: 女 | B171: 239007 | C171: 2307091522 | D171: 15 | E171: 22 | F171: 83.80 | G171: 25.14 | H171: 69.60 | I171: 48.72 | J171: 73.86 | K171: 21 | L171: 71.20 | M171: 72.26
A172: 女 | B172: 239007 | C172: 2307091425 | D172: 14 | E172: 25 | F172: 73.10 | G172: 21.93 | H172: 71.10 | I172: 49.77 | J172: 71.70 | K172: 19 | L172: 70.60 | M172: 71.04
A173: 女 | B173: 239007 | C173: 2307090719 | D173: 07 | E173: 19 | F173: 76.30 | G173: 22.89 | H173: 63.20 | I173: 44.24 | J173: 67.13 | K173: 14 | L173: 73.60 | M173: 71.01
A174: 女 | B174: 239007 | C174: 2307090730 | D174: 07 | E174: 30 | F174: 74.80 | G174: 22.44 | H174: 70.30 | I174: 49.21 | J174: 71.65 | K174: 04 | L174: 70.20 | M174: 70.78
A175: 女 | B175: 239007 | C175: 2307092025 | D175: 20 | E175: 25 | F175: 71.70 | G175: 21.51 | H175: 72.10 | I175: 50.47 | J175: 71.98 | K175: 12 | L175: 69.80 | M175: 70.67
A176: 女 | B176: 239007 | C176: 2307091209 | D176: 12 | E176: 09 | F176: 73.10 | G176: 21.93 | H176: 68.60 | I176: 48.02 | J176: 69.95 | K176: 15 | L176: 70.00 | M176: 69.98
A177: 女 | B177: 239007 | C177: 2307091910 | D177: 19 | E177: 10 | F177: 80.00 | G177: 24.00 | H177: 67.30 | I177: 47.11 | J177: 71.11 | K177: 22 | L177: 67.80 | M177: 69.12
A178: 女 | B178: 239007 | C178: 2307090616 | D178: 06 | E178: 16 | F178: 66.90 | G178: 20.07 | H178: 68.60 | I178: 48.02 | J178: 68.09 | K178: 26 | L178: 68.60 | M178: 68.40
A179: 女 | B179: 239007 | C179: 2307092217 | D179: 22 | E179: 17 | F179: 85.40 | G179: 25.62 | H179: 75.70 | I179: 52.99 | J179: 78.61 | K179: 缺考 | M179: 31.44
A180: 女 | B180: 239007 | C180: 2307093116 | D180: 31 | E180: 16 | F180: 80.00 | G180: 24.00 | H180: 74.20 | I180: 51.94 | J180: 75.94 | K180: 缺考 | M180: 30.38
A181: 女 | B181: 239007 | C181: 2307093128 | D181: 31 | E181: 28 | F181: 76.40 | G181: 22.92 | H181: 73.00 | I181: 51.10 | J181: 74.02 | K181: 缺考 | M181: 29.61
A182: 女 | B182: 239007 | C182: 2307091529 | D182: 15 | E182: 29 | F182: 83.90 | G182: 25.17 | H182: 67.30 | I182: 47.11 | J182: 72.28 | K182: 缺考 | M182: 28.91
A183: 肥西县2023年公办幼儿园招聘幼师及管理人员合成成绩表（岗位8）
A184: 性别 | B184: 报考岗位代码 | C184: 准考证号码 | D184: 考场号 | E184: 座位号 | F184: 科目 1 | G184: 科目1×30% | H184: 科目2 | I184: 科目2×70% | J184: 笔试总成绩=科目1×30%+科目2×70% | K184: 面试抽签号 | L184: 面试成绩 | M184: 合成成绩=笔试总成绩×40%＋面试成绩×60% | N184: 备注
A185: 女 | B185: 230608 | C185: 2307092809 | D185: 28 | E185: 09 | F185: 74.50 | G185: =F185*0.3 -> 22.35 | H185: 79.60 | I185: =H185*0.7 -> 55.72 | J185: =G185+I185 -> 78.07 | K185: 24 | L185: 85.80 | M185: =J185*0.4+L185*0.6 -> 82.71
A186: 女 | B186: 230608 | C186: 2307092313 | D186: 23 | E186: 13 | F186: 89.30 | G186: 26.79 | H186: 77.30 | I186: 54.11 | J186: 80.90 | K186: 09 | L186: 78.60 | M186: 79.52
A187: 女 | B187: 230608 | C187: 2307092128 | D187: 21 | E187: 28 | F187: 78.60 | G187: 23.58 | H187: 70.30 | I187: 49.21 | J187: 72.79 | K187: 25 | L187: 83.20 | M187: 79.04
A188: 女 | B188: 230608 | C188: 2307090106 | D188: 01 | E188: 06 | F188: 70.90 | G188: 21.27 | H188: 72.60 | I188: 50.82 | J188: 72.09 | K188: 05 | L188: 82.40 | M188: 78.28
A189: 女 | B189: 230608 | C189: 2307092018 | D189: 20 | E189: 18 | F189: 77.50 | G189: 23.25 | H189: 65.90 | I189: 46.13 | J189: 69.38 | K189: 18 | L189: 82.40 | M189: 77.19
A190: 女 | B190: 230608 | C190: 2307092024 | D190: 20 | E190: 24 | F190: 81.50 | G190: 24.45 | H190: 69.60 | I190: 48.72 | J190: 73.17 | K190: 14 | L190: 79.20 | M190: 76.79
A191: 女 | B191: 230608 | C191: 2307092406 | D191: 24 | E191: 06 | F191: 84.70 | G191: 25.41 | H191: 67.90 | I191: 47.53 | J191: 72.94 | K191: 11 | L191: 78.80 | M191: 76.46
A192: 女 | B192: 230608 | C192: 2307091718 | D192: 17 | E192: 18 | F192: 79.90 | G192: 23.97 | H192: 67.00 | I192: 46.90 | J192: 70.87 | K192: 04 | L192: 78.80 | M192: 75.63
A193: 女 | B193: 230608 | C193: 2307092022 | D193: 20 | E193: 22 | F193: 74.90 | G193: 22.47 | H193: 68.80 | I193: 48.16 | J193: 70.63 | K193: 01 | L193: 77.60 | M193: 74.81
A194: 女 | B194: 230608 | C194: 2307092119 | D194: 21 | E194: 19 | F194: 72.40 | G194: 21.72 | H194: 64.20 | I194: 44.94 | J194: 66.66 | K194: 07 | L194: 80.20 | M194: 74.78
A195: 女 | B195: 230608 | C195: 2307092501 | D195: 25 | E195: 01 | F195: 72.50 | G195: 21.75 | H195: 69.60 | I195: 48.72 | J195: 70.47 | K195: 06 | L195: 77.60 | M195: 74.75
A196: 女 | B196: 230608 | C196: 2307091822 | D196: 18 | E196: 22 | F196: 65.60 | G196: 19.68 | H196: 71.80 | I196: 50.26 | J196: 69.94 | K196: 08 | L196: 77.20 | M196: 74.30
A197: 女 | B197: 230608 | C197: 2307090913 | D197: 09 | E197: 13 | F197: 81.70 | G197: 24.51 | H197: 74.40 | I197: 52.08 | J197: 76.59 | K197: 19 | L197: 72.60 | M197: 74.20
A198: 女 | B198: 230608 | C198: 2307091710 | D198: 17 | E198: 10 | F198: 71.00 | G198: 21.30 | H198: 65.20 | I198: 45.64 | J198: 66.94 | K198: 16 | L198: 78.20 | M198: 73.70
A199: 女 | B199: 230608 | C199: 2307092929 | D199: 29 | E199: 29 | F199: 75.40 | G199: 22.62 | H199: 65.80 | I199: 46.06 | J199: 68.68 | K199: 02 | L199: 76.40 | M199: 73.31
A200: 女 | B200: 230608 | C200: 2307090610 | D200: 06 | E200: 10 | F200: 73.20 | G200: 21.96 | H200: 68.10 | I200: 47.67 | J200: 69.63 | K200: 12 | L200: 75.60 | M200: 73.21
... 71 more rows
